fUSD/lending_fUSD_20250902
["ID","MTS","AMOUNT","RATE_DAILY","PERIOD"]
[382928462,1756773052447,-151.0,0.00036986,30]
[382928463,1756773052457,-400.0,0.00036986,14]
[382928464,1756773052467,-151.0,0.00036986,30]
[382928465,1756773052476,-151.0,0.00036986,30]
[382928466,1756773052486,-151.0,0.00036986,30]
[382928467,1756773052495,-400.0,0.00036986,14]
[382928468,1756773052505,-400.0,0.00036986,14]
[382928469,1756773052515,-400.0,0.00036986,14]
[382928470,1756773052524,-900.04,0.00036986,14]
[382928471,1756773052535,-400.0,0.00036986,14]
[382928472,1756773052547,-693.59,0.00036986,14]
[382928473,1756773052559,-400.0,0.00036986,14]
[382928474,1756773052570,-400.0,0.00036986,14]
[382928475,1756773052580,-400.0,0.00036986,14]
[382928476,1756773052591,-151.0,0.00036986,30]
[382928477,1756773052601,-400.0,0.00036986,14]
[382928478,1756773052611,-277.833672,0.00036986,30]
[382928479,1756773052621,-546.56,0.00036986,14]
[382928480,1756773052631,-699.33,0.00036986,14]
[382928481,1756773052641,-210.51324896,0.00036986,14]
[382928482,1756773052651,-565.63,0.00036986,14]
[382928483,1756773052660,-400.0,0.00036986,14]
[382928484,1756773052670,-400.0,0.00036986,14]
[382928485,1756773052681,-848.15,0.00036986,14]
[382928486,1756773052691,-400.0,0.00036986,14]
[382928487,1756773052700,-151.0,0.00036986,30]
[382928488,1756773052710,-646.87,0.00036986,14]
[382928489,1756773052719,-151.0,0.00036986,30]
[382928490,1756773052728,-400.0,0.00036986,14]
[382928491,1756773052737,-663.0,0.00036986,14]
[382928492,1756773052746,-762.87,0.00036986,14]
[382928493,1756773052755,-151.0,0.00036986,30]
[382928494,1756773052764,-400.0,0.00036986,14]
[382928495,1756773052773,-151.0,0.00036986,30]
[382928496,1756773053122,-151.0,0.00036986,30]
[382928497,1756773053131,-400.0,0.00036986,14]
[382928498,1756773053140,-151.0,0.00036986,30]
[382928499,1756773053150,-679.36,0.00036986,14]
[382928500,1756773053159,-156.021406,0.00036986,30]
[382928501,1756773053168,-400.0,0.00036986,14]
[382928502,1756773053178,-630.17,0.00036986,14]
[382928503,1756773053188,-156.021406,0.00036986,30]
[382928504,1756773053197,-400.0,0.00036986,14]
[382928505,1756773053207,-156.021406,0.00036986,30]
[382928506,1756773053217,-156.021406,0.00036986,30]
[382928507,1756773053225,-400.0,0.00036986,14]
[382928508,1756773053234,-1000.0,0.00036986,14]
[382928509,1756773053244,-156.021406,0.00036986,30]
[382928510,1756773053252,-400.0,0.00036986,14]
[382928511,1756773053261,-156.021406,0.00036986,30]
[382928512,1756773053271,-856.57,0.00036986,14]
[382928513,1756773053280,-400.0,0.00036986,14]
[382928514,1756773053290,-561.66,0.00036986,14]
[382928515,1756773053300,-400.0,0.00036986,14]
[382928516,1756773053309,-660.56,0.00036986,14]
[382928517,1756773053318,-156.021406,0.00036986,30]
[382928518,1756773053327,-156.021406,0.00036986,30]
[382928519,1756773053336,-482.81,0.00036986,14]
[382928520,1756773053345,-598.01,0.00036986,14]
[382928521,1756773053355,-400.0,0.00036986,14]
[382928522,1756773053364,-400.0,0.00036986,14]
[382928523,1756773053373,-470.45,0.00036986,14]
[382928524,1756773053381,-484.23,0.00036986,14]
[382928525,1756773053391,-500.0,0.00036986,2]
[382928526,1756773053400,-500.0,0.00036986,2]
[382928527,1756773053409,-500.0,0.00036986,2]
[382928528,1756773053418,-500.0,0.00036986,2]
[382928529,1756773053426,-500.0,0.00036986,2]
[382928530,1756773053433,-400.0,0.00036986,14]
[382928531,1756773053440,-500.0,0.00036986,2]
[382928532,1756773053446,-500.0,0.00036986,2]
[382928533,1756773053453,-400.0,0.00036986,14]
[382928534,1756773053460,-500.0,0.00036986,2]
[382928535,1756773053468,-500.0,0.00036986,2]
[382928536,1756773053478,-500.0,0.00036986,2]
[382928537,1756773053487,-400.0,0.00036986,14]
[382928538,1756773053496,-505.0,0.00036986,14]
[382928539,1756773053506,-400.0,0.00036986,14]
[382928540,1756773053515,-400.0,0.00036986,14]
[382928541,1756773053525,-400.0,0.00036986,14]
[382928542,1756773053535,-415.15,0.00036986,14]
[382928543,1756773053544,-606.28,0.00036986,14]
[382928544,1756773053555,-400.0,0.00036986,14]
[382928545,1756773053564,-400.0,0.00036986,14]
[382928546,1756773053575,-400.0,0.00036986,14]
[382928547,1756773053584,-400.0,0.00036986,14]
[382928548,1756773053595,-771.65,0.00036986,14]
[382928549,1756773053605,-401.81,0.00036986,14]
[382928550,1756773053615,-400.0,0.00036986,14]
[382928551,1756773053629,-425.0,0.00036986,14]
[382928552,1756773053639,-732.75,0.00036986,14]
[382928553,1756773053649,-400.0,0.00036986,14]
[382928554,1756773053660,-400.0,0.00036986,14]
[382928555,1756773053670,-400.0,0.00036986,14]
[382928556,1756773053680,-400.0,0.00036986,14]
[382928557,1756773053690,-400.0,0.00036986,14]
[382928558,1756773053700,-400.0,0.00036986,14]
[382928559,1756773053710,-698.83,0.00036986,14]
[382928560,1756773053720,-400.0,0.00036986,14]
[382928561,1756773053729,-400.0,0.00036986,14]
[382928562,1756773053739,-400.0,0.00036986,14]
[382928563,1756773053749,-400.0,0.00036986,14]
[382928564,1756773053759,-400.0,0.00036986,14]
[382928565,1756773053768,-151.0,0.00036986,30]
[382928566,1756773053778,-665.96,0.00036986,14]
[382928567,1756773053788,-151.0,0.00036986,30]
[382928568,1756773053798,-151.0,0.00036986,30]
[382928569,1756773053807,-151.0,0.00036986,30]
[382928570,1756773053817,-151.0,0.00036986,30]
[382928571,1756773053827,-151.0,0.00036986,30]
[382928572,1756773053836,-740.96,0.00036986,14]
[382928573,1756773053846,-788.26,0.00036986,14]
[382928574,1756773053855,-400.0,0.00036986,14]
[382928575,1756773053865,-589.89,0.00036986,14]
[382928576,1756773053876,-151.0,0.00036986,30]
[382928577,1756773053885,-151.0,0.00036986,30]
[382928578,1756773053895,-151.0,0.00036986,30]
[382928579,1756773053904,-151.0,0.00036986,30]
[382928580,1756773053913,-519.11,0.00036986,14]
[382928581,1756773053923,-151.0,0.00036986,30]
[382928582,1756773053932,-151.0,0.00036986,30]
[382928583,1756773053942,-151.0,0.00036986,30]
[382928584,1756773053951,-151.0,0.00036986,30]
[382928585,1756773053960,-588.48,0.00036986,14]
[382928586,1756773053970,-971.84,0.00036986,14]
[382928587,1756773053979,-664.23,0.00036986,14]
[382928588,1756773053988,-787.67,0.00036986,14]
[382928589,1756773053998,-400.0,0.00036986,14]
[382928590,1756773054008,-577.93,0.00036986,14]
[382928591,1756773054017,-400.0,0.00036986,14]
[382928592,1756773054027,-505.67,0.00036986,14]
[382928593,1756773054037,-532.1,0.00036986,14]
[382928594,1756773054046,-400.0,0.00036986,14]
[382928595,1756773054055,-400.0,0.00036986,14]
[382928596,1756773054064,-400.0,0.00036986,14]
[382928597,1756773054074,-443.56,0.00036986,14]
[382928598,1756773054083,-400.0,0.00036986,14]
[382928599,1756773054092,-400.0,0.00036986,14]
[382928600,1756773054102,-400.0,0.00036986,14]
[382928601,1756773054111,-151.0,0.00036986,30]
[382928602,1756773054120,-151.0,0.00036986,30]
[382928603,1756773054129,-621.46,0.00036986,14]
[382928604,1756773054140,-400.0,0.00036986,14]
[382928605,1756773054149,-678.01,0.00036986,14]
[382928606,1756773054160,-634.94,0.00036986,14]
[382928607,1756773054170,-520.31,0.00036986,14]
[382928608,1756773054179,-400.0,0.00036986,14]
[382928609,1756773054188,-554.24,0.00036986,14]
[382928610,1756773054197,-400.0,0.00036986,14]
[382928611,1756773054206,-400.0,0.00036986,14]
[382928612,1756773054215,-547.6,0.00036986,14]
[382928613,1756773054223,-326.453788,0.00036986,30]
[382928614,1756773054232,-326.453788,0.00036986,30]
[382928615,1756773054241,-151.0,0.00036986,30]
[382928616,1756773054250,-564.32,0.00036986,14]
[382928617,1756773054259,-730.59,0.00036986,14]
[382928618,1756773054268,-151.0,0.00036986,30]
[382928619,1756773054278,-710.97,0.00036986,14]
[382928620,1756773054287,-326.453788,0.00036986,30]
[382928621,1756773054296,-169.351632,0.00036986,30]
[382928622,1756773054305,-169.351632,0.00036986,30]
[382928623,1756773054314,-400.0,0.00036986,14]
[382928624,1756773054323,-151.0,0.00036986,30]
[382928625,1756773054332,-151.0,0.00036986,30]
[382928626,1756773054341,-400.0,0.00036986,14]
[382928627,1756773054350,-169.351632,0.00036986,30]
[382928628,1756773054359,-658.66,0.00036986,14]
[382928629,1756773054368,-169.351632,0.00036986,30]
[382928630,1756773054377,-400.0,0.00036986,14]
[382928631,1756773054387,-400.0,0.00036986,14]
[382928632,1756773054397,-169.351632,0.00036986,30]
[382928633,1756773054407,-400.0,0.00036986,14]
[382928634,1756773054416,-169.351632,0.00036986,30]
[382928635,1756773054426,-400.0,0.00036986,14]
[382928636,1756773054436,-603.23,0.00036986,14]
[382928637,1756773054450,-511.6,0.00036986,14]
[382928638,1756773054459,-169.351632,0.00036986,30]
[382928639,1756773054469,-500.0,0.00036986,14]
[382928640,1756773054478,-326.453788,0.00036986,30]
[382928641,1756773054487,-151.0,0.00036986,30]
[382928642,1756773054497,-169.351632,0.00036986,30]
[382928643,1756773054509,-151.0,0.00036986,30]
[382928644,1756773054520,-400.0,0.00036986,14]
[382928645,1756773054531,-326.453788,0.00036986,30]
[382928646,1756773054542,-151.0,0.00036986,30]
[382928647,1756773054552,-151.0,0.00036986,30]
[382928648,1756773054562,-326.453788,0.00036986,30]
[382928649,1756773054574,-400.0,0.00036986,14]
[382928650,1756773054583,-400.0,0.00036986,14]
[382928651,1756773054593,-400.0,0.00036986,14]
[382928652,1756773054603,-326.453788,0.00036986,30]
[382928653,1756773054613,-400.0,0.00036986,14]
[382928654,1756773054623,-151.0,0.00036986,30]
[382928655,1756773054633,-326.453788,0.00036986,30]
[382928656,1756773054643,-151.0,0.00036986,30]
[382928657,1756773054652,-482.63,0.00036986,14]
[382928658,1756773054662,-151.0,0.00036986,30]
[382928659,1756773054672,-400.0,0.00036986,14]
[382928660,1756773054682,-151.0,0.00036986,30]
[382928661,1756773054692,-490.19,0.00036986,14]
[382928662,1756773054702,-505.54,0.00036986,14]
[382928663,1756773054711,-400.0,0.00036986,14]
[382928664,1756773054721,-288.041272,0.00036986,30]
[382928665,1756773054731,-400.0,0.00036986,14]
[382928666,1756773054740,-400.0,0.00036986,14]
[382928667,1756773054749,-151.0,0.00036986,30]
[382928668,1756773054759,-151.0,0.00036986,30]
[382928669,1756773054769,-1152.78,0.00036986,14]
[382928670,1756773054779,-508.2,0.00036986,14]
[382928671,1756773054788,-151.0,0.00036986,30]
[382928672,1756773054798,-151.0,0.00036986,30]
[382928673,1756773054808,-568.4,0.00036986,14]
[382928674,1756773054818,-400.0,0.00036986,14]
[382928675,1756773054828,-400.0,0.00036986,14]
[382928676,1756773054838,-151.0,0.00036986,30]
[382928677,1756773054847,-151.0,0.00036986,30]
[382928678,1756773054856,-151.0,0.00036986,30]
[382928679,1756773054866,-522.39,0.00036986,14]
[382928680,1756773054875,-151.0,0.00036986,30]
[382928681,1756773054885,-603.7,0.00036986,14]
[382928682,1756773054895,-863.58,0.00036986,14]
[382928683,1756773054904,-400.0,0.00036986,14]
[382928684,1756773054913,-151.0,0.00036986,30]
[382928685,1756773054923,-295.17644468,0.00036986,14]
[382928686,1756773054932,-151.0,0.00036986,30]
[382928687,1756773054942,-531.1,0.00036986,14]
[382928688,1756773054951,-151.0,0.00036986,30]
[382928689,1756773054960,-400.0,0.00036986,14]
[382928690,1756773054970,-151.0,0.00036986,30]
[382928691,1756773054979,-554.09,0.00036986,14]
[382928692,1756773054989,-718.26,0.00036986,14]
[382928693,1756773054999,-1039.96,0.00036986,14]
[382928694,1756773055009,-728.14,0.00036986,14]
[382928695,1756773055020,-547.64,0.00036986,14]
[382928696,1756773055031,-840.03,0.00036986,14]
[382928697,1756773055041,-400.0,0.00036986,14]
[382928698,1756773055051,-151.0,0.00036986,30]
[382928699,1756773055060,-151.0,0.00036986,30]
[382928700,1756773055070,-624.49,0.00036986,14]
[382928701,1756773055079,-400.0,0.00036986,14]
[382928702,1756773055088,-400.0,0.00036986,14]
[382928703,1756773055098,-400.0,0.00036986,14]
[382928704,1756773055107,-400.0,0.00036986,14]
[382928705,1756773055117,-400.0,0.00036986,14]
[382928706,1756773055126,-400.0,0.00036986,14]
[382928707,1756773055136,-400.0,0.00036986,14]
[382928708,1756773055146,-608.18,0.00036986,14]
[382928709,1756773055157,-404.08,0.00036986,14]
[382928710,1756773055166,-400.0,0.00036986,14]
[382928711,1756773055175,-793.53,0.00036986,14]
[382928712,1756773055185,-400.0,0.00036986,14]
[382928713,1756773055195,-690.1,0.00036986,14]
[382928714,1756773055204,-725.58,0.00036986,14]
[382928715,1756773055214,-400.0,0.00036986,14]
[382928716,1756773055223,-400.0,0.00036986,14]
[382928717,1756773055233,-400.0,0.00036986,14]
[382928718,1756773055242,-457.49,0.00036986,14]
[382928719,1756773055252,-400.0,0.00036986,14]
[382928720,1756773055261,-400.0,0.00036986,14]
[382928721,1756773055271,-683.24,0.00036986,14]
[382928722,1756773055281,-151.0,0.00036986,30]
[382928723,1756773055290,-151.0,0.00036986,30]
[382928724,1756773055300,-151.0,0.00036986,30]
[382928725,1756773055309,-608.09,0.00036986,14]
[382928726,1756773055319,-151.0,0.00036986,30]
[382928727,1756773055329,-400.0,0.00036986,14]
[382928728,1756773055339,-151.0,0.00036986,30]
[382928729,1756773055348,-599.1,0.00036986,14]
[382928730,1756773055358,-151.0,0.00036986,30]
[382928731,1756773055368,-400.0,0.00036986,14]
[382928732,1756773055378,-717.89,0.00036986,14]
[382928733,1756773055387,-400.0,0.00036986,14]
[382928734,1756773055397,-151.0,0.00036986,30]
[382928735,1756773055407,-151.0,0.00036986,30]
[382928736,1756773055417,-400.0,0.00036986,14]
[382928737,1756773055535,-400.0,0.00036986,14]
[382928738,1756773055551,-400.0,0.00036986,14]
[382928739,1756773055560,-400.0,0.00036986,14]
[382928740,1756773055569,-151.0,0.00036986,30]
[382928741,1756773055578,-160.430063,0.00036986,30]
[382928742,1756773055587,-400.0,0.00036986,14]
[382928743,1756773055596,-400.0,0.00036986,14]
[382928744,1756773055605,-419.47,0.00036986,14]
[382928745,1756773055614,-780.71,0.00036986,14]
[382928746,1756773055623,-400.0,0.00036986,14]
[382928747,1756773055632,-216.056815,0.00036986,30]
[382928748,1756773055642,-764.11,0.00036986,14]
[382928749,1756773055651,-400.0,0.00036986,14]
[382928750,1756773055660,-592.64,0.00036986,14]
[382928751,1756773055669,-897.86,0.00036986,14]
[382928752,1756773055679,-400.0,0.00036986,14]
[382928753,1756773055688,-400.0,0.00036986,14]
[382928754,1756773055697,-400.0,0.00036986,14]
[382928755,1756773055707,-400.0,0.00036986,14]
[382928756,1756773055716,-400.0,0.00036986,14]
[382928757,1756773055725,-400.0,0.00036986,14]
[382928758,1756773055734,-574.06,0.00036986,14]
[382928759,1756773055743,-400.0,0.00036986,14]
[382928760,1756773055753,-400.0,0.00036986,14]
[382928761,1756773055762,-151.0,0.00036986,30]
[382928762,1756773055771,-151.0,0.00036986,30]
[382928763,1756773055781,-151.0,0.00036986,30]
[382928764,1756773055791,-151.471,0.00036986,30]
[382928765,1756773055800,-259.123459,0.00036986,30]
[382928766,1756773055810,-400.0,0.00036986,12]
[382928767,1756773055820,-400.0,0.00036986,14]
[382928768,1756773055829,-400.0,0.00036986,14]
[382928769,1756773055839,-400.0,0.00036986,14]
[382928770,1756773055847,-610.86,0.00036986,14]
[382928771,1756773055857,-151.0,0.00036986,30]
[382928772,1756773055866,-151.0,0.00036986,30]
[382928773,1756773055876,-151.0,0.00036986,30]
[382928774,1756773055886,-555.65,0.00036986,14]
[382928775,1756773055896,-400.0,0.00036986,14]
[382928776,1756773055904,-428.7,0.00036986,14]
[382928777,1756773055912,-707.19,0.00036986,14]
[382928778,1756773055922,-737.65,0.00036986,14]
[382928779,1756773055931,-151.0,0.00036986,30]
[382928780,1756773055940,-161.088967,0.00036986,30]
[382928781,1756773055948,-151.0,0.00036986,30]
[382928782,1756773055957,-151.0,0.00036986,30]
[382928783,1756773055965,-151.0,0.00036986,30]
[382928784,1756773055974,-509.03,0.00036986,14]
[382928785,1756773055983,-583.61,0.00036986,14]
[382928786,1756773055992,-151.0,0.00036986,30]
[382928787,1756773056000,-151.0,0.00036986,30]
[382928788,1756773056010,-483.51,0.00036986,14]
[382928789,1756773056018,-151.0,0.00036986,30]
[382928790,1756773056027,-151.0,0.00036986,30]
[382928791,1756773056036,-222.246985,0.00036986,30]
[382928792,1756773056045,-151.0,0.00036986,30]
[382928793,1756773056053,-400.0,0.00036986,14]
[382928794,1756773056062,-151.0,0.00036986,30]
[382928795,1756773056071,-457.08,0.00036986,14]
[382928796,1756773056080,-151.0,0.00036986,30]
[382928797,1756773056086,-151.0,0.00036986,30]
[382928798,1756773056095,-400.0,0.00036986,14]
[382928799,1756773056105,-191.120071,0.00036986,30]
[382928800,1756773056114,-400.0,0.00036986,14]
[382928801,1756773056124,-400.0,0.00036986,14]
[382928802,1756773056134,-600.47,0.00036986,14]
[382928803,1756773056143,-400.0,0.00036986,14]
[382928804,1756773056152,-400.0,0.00036986,14]
[382928805,1756773056162,-442.92,0.00036986,14]
[382928806,1756773056171,-1069.46,0.00036986,14]
[382928807,1756773056181,-400.0,0.00036986,14]
[382928808,1756773056192,-400.0,0.00036986,14]
[382928809,1756773056201,-780.68,0.00036986,14]
[382928810,1756773056210,-479.21,0.00036986,14]
[382928811,1756773056219,-400.0,0.00036986,14]
[382928812,1756773056229,-1165.57,0.00036986,14]
[382928813,1756773056238,-762.22,0.00036986,14]
[382928814,1756773056248,-400.0,0.00036986,14]
[382928815,1756773056257,-400.0,0.00036986,14]
[382928816,1756773056266,-400.0,0.00036986,14]
[382928817,1756773056275,-1297.32,0.00036986,14]
[382928818,1756773056286,-540.21,0.00036986,14]
[382928819,1756773056295,-400.0,0.00036986,14]
[382928820,1756773056304,-400.0,0.00036986,14]
[382928821,1756773056314,-794.43,0.00036986,14]
[382928822,1756773056323,-400.0,0.00036986,14]
[382928823,1756773056332,-526.31584229,0.00036986,14]
[382928824,1756773056341,-400.0,0.00036986,14]
[382928825,1756773056351,-400.0,0.00036986,14]
[382928826,1756773056359,-870.79,0.00036986,14]
[382928827,1756773056368,-400.0,0.00036986,14]
[382928828,1756773056377,-500.0,0.00036986,14]
[382928829,1756773056386,-730.56,0.00036986,14]
[382928830,1756773056396,-500.0,0.00036986,14]
[382928831,1756773056405,-223.6,0.00036986,14]
[382928832,1756773056415,-400.0,0.00036986,14]
[382928833,1756773056424,-500.0,0.00036986,14]
[382928834,1756773056433,-500.0,0.00036986,14]
[382928835,1756773056442,-400.0,0.00036986,14]
[382928836,1756773056451,-745.48,0.00036986,14]
[382928837,1756773056460,-634.28,0.00036986,14]
[382928838,1756773056469,-776.57,0.00036986,14]
[382928839,1756773056478,-400.0,0.00036986,14]
[382928840,1756773056487,-400.0,0.00036986,14]
[382928841,1756773056497,-400.0,0.00036986,14]
[382928842,1756773056506,-400.0,0.00036986,14]
[382928843,1756773056515,-400.0,0.00036986,14]
[382928844,1756773056525,-400.0,0.00036986,14]
[382928845,1756773056534,-632.25,0.00036986,14]
[382928846,1756773056547,-400.0,0.00036986,14]
[382928847,1756773056556,-699.86,0.00036986,14]
[382928848,1756773056565,-400.0,0.00036986,14]
[382928849,1756773056574,-151.0,0.00036986,30]
[382928850,1756773056583,-400.0,0.00036986,14]
[382928851,1756773056592,-151.0,0.00036986,30]
[382928852,1756773056601,-400.0,0.00036986,14]
[382928853,1756773056610,-400.0,0.00036986,14]
[382928854,1756773056620,-151.0,0.00036986,30]
[382928855,1756773056629,-676.79,0.00036986,14]
[382928856,1756773056638,-400.0,0.00036986,14]
[382928857,1756773056647,-400.0,0.00036986,14]
[382928858,1756773056657,-400.0,0.00036986,14]
[382928859,1756773056667,-230.21728,0.00036986,30]
[382928860,1756773056676,-730.49,0.00036986,14]
[382928861,1756773056685,-400.0,0.00036986,14]
[382928862,1756773056694,-651.19,0.00036986,14]
[382928863,1756773056704,-400.0,0.00036986,14]
[382928864,1756773056713,-400.0,0.00036986,14]
[382928865,1756773056722,-474.34,0.00036986,14]
[382928866,1756773056732,-781.71,0.00036986,14]
[382928867,1756773056742,-400.0,0.00036986,14]
[382928868,1756773056752,-400.0,0.00036986,14]
[382928869,1756773056762,-757.7,0.00036986,14]
[382928870,1756773056771,-400.0,0.00036986,14]
[382928871,1756773056781,-400.0,0.00036986,14]
[382928872,1756773056791,-477.31,0.00036986,14]
[382928873,1756773056800,-400.0,0.00036986,14]
[382928874,1756773056809,-400.0,0.00036986,14]
[382928875,1756773056818,-400.0,0.00036986,14]
[382928876,1756773056827,-400.0,0.00036986,14]
[382928877,1756773056836,-400.0,0.00036986,14]
[382928878,1756773056845,-652.86,0.00036986,14]
[382928879,1756773056854,-518.9,0.00036986,14]
[382928880,1756773056863,-738.33,0.00036986,14]
[382928881,1756773056872,-738.33,0.00036986,14]
[382928882,1756773056881,-400.0,0.00036986,14]
[382928883,1756773056891,-738.33,0.00036986,14]
[382928884,1756773056900,-400.0,0.00036986,14]
[382928885,1756773056910,-738.33,0.00036986,14]
[382928886,1756773056921,-738.33,0.00036986,14]
[382928887,1756773056930,-738.33,0.00036986,14]
[382928888,1756773056939,-738.33,0.00036986,14]
[382928889,1756773056948,-400.0,0.00036986,14]
[382928890,1756773056957,-738.33,0.00036986,14]
[382928891,1756773056966,-738.33,0.00036986,14]
[382928892,1756773056975,-400.0,0.00036986,14]
[382928893,1756773056984,-738.33,0.00036986,14]
[382928894,1756773056993,-400.0,0.00036986,14]
[382928895,1756773057002,-400.0,0.00036986,14]
[382928896,1756773057012,-400.0,0.00036986,14]
[382928897,1756773057022,-400.0,0.00036986,14]
[382928898,1756773057032,-400.0,0.00036986,14]
[382928899,1756773057041,-400.0,0.00036986,14]
[382928900,1756773057050,-658.62,0.00036986,14]
[382928901,1756773057060,-400.0,0.00036986,14]
[382928902,1756773057069,-513.63,0.00036986,14]
[382928903,1756773057079,-400.0,0.00036986,14]
[382928904,1756773057088,-571.46,0.00036986,14]
[382928905,1756773057097,-400.0,0.00036986,14]
[382928906,1756773057106,-400.0,0.00036986,14]
[382928907,1756773057115,-400.0,0.00036986,14]
[382928908,1756773057124,-533.38,0.00036986,14]
[382928909,1756773057135,-400.0,0.00036986,14]
[382928910,1756773057145,-400.0,0.00036986,14]
[382928911,1756773057155,-500.0,0.00036986,14]
[382928912,1756773057164,-500.0,0.00036986,14]
[382928913,1756773057175,-500.0,0.00036986,14]
[382928914,1756773057185,-500.0,0.00036986,14]
[382928915,1756773057195,-732.43,0.00036986,14]
[382928916,1756773057205,-500.0,0.00036986,14]
[382928917,1756773057215,-500.0,0.00036986,14]
[382928918,1756773057224,-1049.07,0.00036986,14]
[382928919,1756773057233,-400.0,0.00036986,14]
[382928920,1756773057242,-400.0,0.00036986,14]
[382928921,1756773057251,-400.0,0.00036986,14]
[382928922,1756773057260,-655.99,0.00036986,14]
[382928923,1756773057269,-400.0,0.00036986,14]
[382928924,1756773057278,-400.0,0.00036986,14]
[382928925,1756773057289,-400.0,0.00036986,14]
[382928926,1756773057299,-679.49,0.00036986,14]
[382928927,1756773057308,-400.0,0.00036986,14]
[382928928,1756773057317,-400.0,0.00036986,14]
[382928929,1756773057326,-400.0,0.00036986,14]
[382928930,1756773057335,-722.99,0.00036986,14]
[382928931,1756773057345,-400.0,0.00036986,14]
[382928932,1756773057354,-400.0,0.00036986,14]
[382928933,1756773057363,-400.0,0.00036986,14]
[382928934,1756773057371,-626.18,0.00036986,14]
[382928935,1756773057380,-400.0,0.00036986,14]
[382928936,1756773057391,-526.54,0.00036986,14]
[382928937,1756773057400,-400.0,0.00036986,14]
[382928938,1756773057409,-400.0,0.00036986,14]
[382928939,1756773057418,-481.26,0.00036986,14]
[382928940,1756773057428,-908.02,0.00036986,14]
[382928941,1756773057437,-400.0,0.00036986,14]
[382928942,1756773057448,-400.0,0.00036986,14]
[382928943,1756773057456,-400.0,0.00036986,14]
[382928944,1756773057465,-443.61,0.00036986,14]
[382928945,1756773057474,-400.0,0.00036986,14]
[382928946,1756773057483,-679.3,0.00036986,14]
[382928947,1756773057493,-400.0,0.00036986,14]
[382928948,1756773057502,-400.0,0.00036986,14]
[382928949,1756773057511,-961.06,0.00036986,14]
[382928950,1756773057520,-420.91,0.00036986,14]
[382928951,1756773057529,-400.0,0.00036986,14]
[382928952,1756773057541,-400.0,0.00036986,14]
[382928953,1756773057551,-400.0,0.00036986,14]
[382928954,1756773057560,-400.0,0.00036986,14]
[382928955,1756773057569,-400.0,0.00036986,14]
[382928956,1756773057578,-400.0,0.00036986,14]
[382928957,1756773057588,-400.0,0.00036986,14]
[382928958,1756773057598,-400.0,0.00036986,14]
[382928959,1756773057607,-1058.65,0.00036986,14]
[382928960,1756773057616,-400.0,0.00036986,14]
[382928961,1756773057625,-400.0,0.00036986,14]